lending/lending_fUSD_20260306
["ID","MTS","AMOUNT","RATE_DAILY","PERIOD"]
[407804477,1772812656020,-10000.01,0.00014207,2]
[407804478,1772812674276,543.0,0.0001342,2]
[407804479,1772812688196,1435.860729,7.945e-05,2]
[407804480,1772812706609,-1214.75266794,0.00014207,2]
[407804481,1772812706643,-600.0,0.00014207,2]
[407804482,1772812706675,-300.1664068,0.00014207,2]
[407804483,1772812712569,821.0,0.00014206,2]
[407804484,1772812800496,-1352.03764723,0.00014196,2]
[407804485,1772812800532,-979.62678036,0.00014207,2]
[407804486,1772812800672,-2536.82041582,0.00014207,2]
[407804487,1772812800722,-10000.01,0.00014207,2]
[407804488,1772812803247,-300.0,0.00014206,2]
[407804489,1772812803285,-1200.0,0.00014206,2]
[407804490,1772812803319,-3109.80013876,0.00014207,2]
[407804491,1772812803421,-267.0,0.00014196,2]
[407804492,1772812803433,-513.40972248,0.00014207,2]
[407804496,1772812807027,-300.0,0.00014206,2]
[407804497,1772812807059,-300.0,0.00014207,2]
[407804498,1772812807093,-150.0,0.00014207,14]
[407804499,1772812807125,-1986.59027752,0.00014207,2]
[407804500,1772812807171,-500.0,0.00014207,2]
[407804501,1772812807204,-500.0,0.00014207,2]
[407804502,1772812807237,-500.0,0.00014207,2]
[407804503,1772812807275,-193.72407298,0.00014207,2]
[407804504,1772812807309,-539.381299,0.00014252,2]
[407804505,1772812807475,-60.618701,0.00014252,2]
[407804506,1772812809439,-524.20581265,0.00014252,2]
[407804507,1772812809472,-250.0,0.00014256,2]
[407804508,1772812809504,-250.0,0.00014286,2]
[407804509,1772812809536,-151.0,0.00014304,2]
[407804510,1772812809567,-150.0,0.00014305,2]
[407804511,1772812809600,-191.9272,0.00014306,2]
[407804512,1772812809635,-500.0,0.00014306,2]
[407804513,1772812809673,-474.67203592,0.00014306,2]
[407804514,1772812809708,-308.93077427,0.00014306,2]
[407804515,1772812809746,-500.0,0.00014306,2]
[407804516,1772812809786,-297.40339152,0.00014306,2]
[407804517,1772812809820,-259.34989813,0.00014306,2]
[407804518,1772812809852,-500.0,0.00014306,2]
[407804519,1772812809884,-500.0,0.00014306,2]
[407804520,1772812809920,-102.76134987,0.00014306,2]
[407804521,1772812810100,-79.50907528,0.00014306,2]
[407804522,1772812810139,-158.30570722,0.00014306,2]
[407804523,1772812810187,-184.81538827,0.00014306,2]
[407804524,1772812810219,-150.0,0.00014306,2]
[407804525,1772812810255,-200.0,0.00014307,2]
[407804526,1772812835856,543.7397,0.0001342,2]
[407804529,1772812937881,510.39170789,0.0001142,2]
[407804530,1772812942776,797.98363115,0.0001142,2]
[407804531,1772812946966,500.0,0.0001142,2]
[407804532,1772812947442,500.0,8.987e-05,2]
[407804533,1772812950731,500.0,0.0001142,2]
[407804534,1772812951497,548.24735875,8.987e-05,2]
[407804539,1772812956979,3722.68747001,0.0001,2]
[407804540,1772812974282,500.0,0.0001342,2]
[407804573,1772813130218,-600.0,0.00014107,2]
[407804574,1772813130240,-500.0,0.00014107,2]
[407804575,1772813130262,-512.66861921,0.0001418,2]
[407804576,1772813191791,509.0,0.0001342,2]
[407804577,1772813218293,-237.94237151,0.00014106,2]
[407804578,1772813218318,-237.94237151,0.00014107,2]
[407804579,1772813218341,-790.24070377,0.00014107,2]
[407804580,1772813218365,-237.94237151,0.00014107,2]
[407804581,1772813218391,-4843.34571087,0.00014107,2]
[407804582,1772813218417,-87.33138079,0.0001418,2]
[407804583,1772813218440,-300.0,0.00014205,2]
[407804584,1772813218464,-1200.0,0.00014206,2]
[407804585,1772813218490,-286.0,0.00014206,2]
[407804586,1772813218514,-150.0,0.00014206,2]
[407804587,1772813218537,-759.37565563,0.00014207,2]
[407804588,1772813218561,-874.87943441,0.00014207,2]
[407804589,1772813239981,500.0,0.0001142,2]
[407804590,1772813240010,543.03293188,0.0001142,2]
[407804591,1772813240152,324.92720032,0.0001142,2]
[407804592,1772813240176,175.07279968,0.0001142,2]
[407804593,1772813240430,2745.79,0.00011507,2]
[407804594,1772813246562,500.0,0.0001142,2]
[407804595,1772813247042,500.0,8.987e-05,2]
[407804596,1772813247078,500.0,0.0001142,2]
[407804597,1772813250134,690.04393757,0.0001142,2]
[407804598,1772813250195,500.0,0.0001142,2]
[407804599,1772813250857,500.0,0.0001142,2]
[407804600,1772813251320,500.0,0.0001142,2]
[407804601,1772813251864,556.72994091,8.987e-05,2]
[407804602,1772813256394,995.00949798,0.0001142,2]
[407804604,1772813418373,1321.02,0.00013454,2]
[407804605,1772813432063,-7431.76586419,0.00014,2]
[407804620,1772813432144,-590.7,0.00014,2]
[407804622,1772813432157,-1333.03822215,0.00014,2]
[407804624,1772813432166,-266.0,0.00014036,2]
[407804626,1772813432176,-1623.638989,0.00014036,2]
[407804628,1772813432187,-288.35657214,0.00014097,2]
[407804630,1772813432196,-151.0,0.00014104,2]
[407804632,1772813432205,-1200.0,0.00014106,2]
[407804634,1772813432215,-2500.0,0.00014107,2]
[407804636,1772813432224,-38696.16673618,0.00014107,2]
[407804639,1772813432236,-329048.59805438,0.00014107,2]
[407804643,1772813432317,-184.1244595,0.00014106,2]
[407804644,1772813432327,-372.63726842,0.00014106,2]
[407804645,1772813432337,-382.53419874,0.00014106,2]
[407804646,1772813432350,-117.46580126,0.00014106,2]
[407804647,1772813432359,-742.4199172,0.00014107,2]
[407804672,1772813438141,-582.60497699,0.00014106,2]
[407804673,1772813438152,-500.0,0.00014106,2]
[407804674,1772813438161,-500.0,0.00014106,2]
[407804675,1772813438173,-315.86799927,0.00014106,2]
[407804676,1772813438182,-10371.56954413,0.00014107,2]
[407804677,1772813438193,-10938.59121332,0.00014107,2]
[407804678,1772813438221,-2117.21414669,0.00014107,2]
[407804679,1772813438232,-433.74724609,0.00014107,2]
[407804680,1772813438243,-1210.03371215,0.00014107,2]
[407804681,1772813438255,-2106441.65942986,0.00014107,2]
[407804682,1772813438264,-1706.4322,0.00014107,2]
[407804683,1772813438274,-600.0,0.00014121,2]
[407804684,1772813438284,-300.0,0.00014121,2]
[407804685,1772813438294,-150.0,0.00014206,2]
[407804686,1772813438307,-3002.94905422,0.00014206,2]
[407804687,1772813438316,-300.0,0.00014207,2]
[407804688,1772813438326,-11926.46935187,0.00014207,2]
[407804689,1772813438335,-157.40983265,0.00014207,2]
[407804690,1772813438346,-583.85992057,0.00014207,2]
[407804691,1772813438355,-668.54061129,0.00014207,2]
[407804692,1772813438364,-2002.29606884,0.00014207,2]
[407804693,1772813438375,-1055.98790797,0.00014207,2]
[407804694,1772813438384,-93935.6948,0.00014207,2]
[407804695,1772813438394,-6001.0737,0.00014207,2]
[407804696,1772813438403,-366.83063308,0.00014233,2]
[407804697,1772813438413,-372.24433971,0.00014273,2]
[407804698,1772813438422,-500.0,0.00014273,2]
[407804699,1772813438431,-500.0,0.00014273,2]
[407804700,1772813438449,-167.13661669,0.00014273,2]
[407804701,1772813438460,-500.0,0.00014273,2]
[407804702,1772813438470,-407.46862187,0.00014273,2]
[407804703,1772813438479,-500.18261012,0.00014273,2]
[407804704,1772813438489,-167.11665281,0.00014273,2]
[407804705,1772813438499,-167.08473967,0.00014273,2]
[407804706,1772813438508,-500.0,0.00014273,2]
[407804707,1772813438518,-500.0,0.00014273,2]
[407804708,1772813438528,-500.0,0.00014273,2]
[407804709,1772813438538,-34103.0,0.00014274,2]
[407804710,1772813438548,-500.0,0.0001428,2]
[407804711,1772813438557,-150.0,0.0001428,2]
[407804712,1772813438569,-547.44319518,0.00014299,2]
[407804713,1772813438578,-200.0,0.00014299,2]
[407804714,1772813438588,-500.0,0.00014299,2]
[407804715,1772813438598,-500.0,0.00014299,2]
[407804716,1772813438607,-500.0,0.00014299,2]
[407804717,1772813438616,-500.0,0.00014299,2]
[407804718,1772813438626,-500.0,0.00014299,2]
[407804719,1772813438636,-500.0,0.00014299,2]
[407804720,1772813438645,-500.0,0.00014299,2]
[407804721,1772813438654,-500.0,0.00014299,2]
[407804722,1772813438662,-500.0,0.00014299,2]
[407804723,1772813438672,-500.0,0.00014299,2]
[407804724,1772813438681,-500.0,0.00014299,2]
[407804725,1772813438691,-500.0,0.00014299,2]
[407804726,1772813438700,-500.0,0.00014299,2]
[407804727,1772813438710,-500.0,0.00014299,2]
[407804728,1772813438720,-500.0,0.00014299,2]
[407804729,1772813438730,-500.0,0.00014299,2]
[407804730,1772813438739,-500.0,0.00014299,2]
[407804731,1772813438748,-500.0,0.00014299,2]
[407804732,1772813438757,-500.0,0.00014299,2]
[407804733,1772813438767,-151.0,0.00014299,2]
[407804735,1772813438776,-151.0,0.00014299,2]
[407804736,1772813438787,-151.0,0.00014299,2]
[407804737,1772813438796,-151.0,0.00014299,2]
[407804738,1772813438805,-151.0,0.00014299,2]
[407804739,1772813438815,-151.0,0.00014299,2]
[407804740,1772813438824,-151.0,0.00014299,2]
[407804741,1772813438834,-151.0,0.00014299,2]
[407804742,1772813438844,-151.0,0.00014299,2]
[407804743,1772813438854,-500.0,0.00014299,2]
[407804744,1772813438863,-151.0,0.00014299,2]
[407804745,1772813438872,-500.0,0.00014299,2]
[407804746,1772813438883,-151.0,0.00014299,2]
[407804747,1772813438892,-500.0,0.00014299,2]
[407804748,1772813438901,-151.0,0.00014299,2]
[407804749,1772813438911,-151.0,0.00014299,2]
[407804750,1772813438920,-151.0,0.00014299,2]
[407804751,1772813438930,-151.0,0.00014299,2]
[407804752,1772813438939,-151.0,0.00014299,2]
[407804753,1772813438948,-151.0,0.00014299,2]
[407804754,1772813438958,-151.0,0.00014299,2]
[407804755,1772813438967,-198.53487061,0.00014299,2]
[407804756,1772813438976,-251.3544907,0.00014299,2]
[407804757,1772813438986,-151.0,0.00014299,2]
[407804758,1772813438995,-151.0,0.00014299,2]
[407804759,1772813439008,-151.0,0.00014299,2]
[407804760,1772813439018,-151.0,0.00014299,2]
[407804761,1772813439029,-151.0,0.00014299,2]
[407804762,1772813439042,-151.0,0.00014299,2]
[407804763,1772813439051,-151.0,0.00014299,2]
[407804764,1772813439061,-151.0,0.00014299,2]
[407804765,1772813439070,-151.0,0.00014299,2]
[407804766,1772813439080,-151.0,0.00014299,2]
[407804767,1772813439090,-151.0,0.00014299,2]
[407804768,1772813439099,-200.0,0.00014303,2]
[407804769,1772813439109,-529.79977508,0.00014306,2]
[407804770,1772813439118,-500.0,0.00014306,2]
[407804771,1772813439128,-500.0,0.00014306,2]
[407804772,1772813439138,-500.0,0.00014306,2]
[407804773,1772813439147,-500.0,0.00014306,2]
[407804774,1772813439156,-500.0,0.00014306,2]
[407804775,1772813439166,-1130.67785308,0.00014306,5]
[407804776,1772813439175,-1130.67785308,0.00014306,5]
[407804777,1772813439185,-1130.67785309,0.00014306,5]
[407804778,1772813439195,-500.0,0.00014306,2]
[407804779,1772813439204,-500.0,0.00014306,2]
[407804780,1772813439214,-500.0,0.00014306,2]
[407804781,1772813439223,-500.0,0.00014306,2]
[407804782,1772813439233,-598.33174267,0.00014306,2]
[407804783,1772813439243,-500.0,0.00014306,2]
[407804784,1772813439253,-500.0,0.00014306,2]
[407804785,1772813439263,-500.0,0.00014306,2]
[407804786,1772813439272,-500.0,0.00014306,2]
[407804787,1772813439283,-500.0,0.00014306,2]
[407804788,1772813439297,-512.9597754,0.00014306,2]
[407804789,1772813439313,-500.0,0.00014306,2]
[407804790,1772813439323,-500.0,0.00014306,2]
[407804791,1772813439332,-500.0,0.00014306,2]
[407804792,1772813439343,-500.0,0.00014306,2]
[407804793,1772813439354,-500.0,0.00014306,2]
[407804794,1772813439364,-500.0,0.00014306,2]
[407804795,1772813439375,-500.0,0.00014306,2]
[407804796,1772813439386,-150.0,0.00014306,2]
[407804797,1772813439400,-500.0,0.00014306,2]
[407804798,1772813439413,-500.0,0.00014306,2]
[407804799,1772813439423,-500.0,0.00014306,2]
[407804800,1772813439433,-500.0,0.00014306,2]
[407804801,1772813439443,-500.0,0.00014306,2]
[407804802,1772813439452,-500.0,0.00014306,2]
[407804803,1772813439462,-500.0,0.00014306,2]
[407804804,1772813439472,-500.0,0.00014306,2]
[407804805,1772813439481,-500.0,0.00014306,2]
[407804806,1772813439490,-500.0,0.00014306,2]
[407804807,1772813439500,-500.0,0.00014306,2]
[407804808,1772813439509,-500.0,0.00014306,2]
[407804809,1772813439519,-500.0,0.00014306,2]
[407804810,1772813439529,-500.0,0.00014306,2]
[407804811,1772813439540,-630.81055911,0.00014306,2]
[407804812,1772813439550,-500.0,0.00014306,2]
[407804813,1772813439559,-500.0,0.00014306,2]
[407804814,1772813439569,-500.0,0.00014306,2]
[407804815,1772813439578,-500.0,0.00014306,2]
[407804816,1772813439588,-500.0,0.00014306,2]
[407804817,1772813439598,-500.0,0.00014306,2]
[407804818,1772813439609,-500.0,0.00014306,2]
[407804819,1772813439618,-500.0,0.00014306,2]
[407804820,1772813439628,-500.0,0.00014306,2]
[407804821,1772813439638,-532.32,0.00014306,2]
[407804822,1772813439647,-532.32,0.00014306,2]
[407804823,1772813439657,-532.32,0.00014306,2]
[407804824,1772813439667,-532.32,0.00014306,2]
[407804825,1772813439676,-500.0,0.00014306,2]
[407804826,1772813439686,-532.32,0.00014306,2]
[407804827,1772813439695,-500.0,0.00014306,2]
[407804828,1772813439705,-532.32,0.00014306,2]
[407804829,1772813439715,-500.0,0.00014306,2]
[407804830,1772813439724,-500.0,0.00014306,2]
[407804831,1772813439734,-500.0,0.00014306,2]
[407804832,1772813439743,-605.06782672,0.00014306,2]
[407804833,1772813439753,-532.32,0.00014306,2]
[407804834,1772813439764,-532.32,0.00014306,2]
[407804835,1772813439773,-532.32,0.00014306,2]
[407804836,1772813439786,-532.32,0.00014306,2]
[407804837,1772813439797,-1000.0,0.00014306,2]
[407804838,1772813439807,-351.25248798,0.00014306,2]
[407804839,1772813439816,-457.40926717,0.00014306,2]
[407804840,1772813439826,-185.9718692,0.00014307,2]
[407804841,1772813439836,-1000.0,0.00014307,2]
[407804842,1772813439846,-500.0,0.00014373,2]
[407804843,1772813439856,-301.78790722,0.00014373,2]
[407804844,1772813439865,-500.0,0.00014373,2]
[407804845,1772813439875,-163.17298866,0.00014373,2]
[407804852,1772813440331,-500.0,0.00014373,2]
[407804853,1772813440340,-500.0,0.00014373,2]
[407804854,1772813440351,-500.0,0.00014373,2]
[407804855,1772813440360,-637.7067289,0.00014373,2]
[407804856,1772813440369,-500.0,0.00014373,2]
[407804858,1772813440379,-501.14462458,0.00014373,2]
[407804860,1772813440389,-500.43471003,0.00014373,2]
[407804862,1772813440398,-240.12890457,0.00014373,2]
[407804864,1772813440407,-500.0,0.00014373,2]
[407804867,1772813440421,-500.0,0.00014373,2]
[407804869,1772813440430,-500.0,0.00014373,2]
[407804871,1772813440440,-500.0,0.00014373,2]
[407804873,1772813440449,-219.32528239,0.00014373,2]
[407804875,1772813440458,-500.0,0.00014373,2]
[407804876,1772813440466,-500.0,0.00014373,2]
[407804878,1772813440474,-1138.97315035,0.00014488,3]
[407804880,1772813440483,-2667.96038966,0.00014488,3]
[407804881,1772813440491,-2823.95795792,0.00014488,3]
[407804882,1772813440500,-2957.88266169,0.00014488,3]
[407804883,1772813440508,-3247.80493378,0.00014488,3]
[407804884,1772813440518,-500.0,0.00014554,2]
[407804885,1772813440528,-125886.5525473,0.00014556,2]
[407804886,1772813440537,-500.0,0.00014573,2]
[407804887,1772813440548,-500.0,0.00014573,2]
[407804888,1772813440558,-151.0,0.00014634,2]
[407804889,1772813440567,-4843.3457108,0.00014751,2]
[407804890,1772813440577,-500.0,0.00014821,2]
[407804891,1772813440587,-500.0,0.00014821,2]
[407804892,1772813440597,-1000.0,0.00014821,2]
[407804893,1772813440606,-1000.0,0.00014821,2]
[407804894,1772813440615,-500.0,0.00014828,2]
[407804895,1772813440625,-11926.4693518,0.0001484,2]
[407804896,1772813440635,-200.0,0.00014847,2]
[407804897,1772813440644,-253.0,0.00014906,2]
[407804898,1772813440654,-494.64624274,0.00014921,2]
[407804899,1772813440663,-849.85488597,0.00014921,2]
[407804900,1772813440672,-538.31254321,0.00014921,2]
[407804901,1772813440682,-500.0,0.00014921,2]
[407804902,1772813440691,-502.06786579,0.00014921,2]
[407804903,1772813440700,-1000.0,0.00014921,2]
[407804904,1772813440710,-500.0,0.00014921,2]
[407804905,1772813440720,-500.0,0.00014921,2]
[407804906,1772813440729,-250.0,0.00015,2]
[407804907,1772813440739,-336.0,0.00015012,2]
[407804908,1772813440749,-3002.94905418,0.00015019,2]
[407804909,1772813440758,-579.40616332,0.00015102,2]
[407804910,1772813440768,-235.21838039,0.00015121,2]
[407804911,1772813440778,-1000.0,0.00015121,2]
[407804912,1772813440787,-500.0,0.000153,2]
[407804913,1772813440797,-255.0,0.00015328,2]
[407804914,1772813440809,-1055.98790797,0.00015346,2]
[407804916,1772813440818,-1500.0,0.00015368,2]
[407804918,1772813440827,-1500.0,0.00015368,2]
[407804919,1772813440836,-500.0,0.00015375,2]
[407804922,1772813440847,-530.88059829,0.00015375,2]
[407804924,1772813440856,-500.0,0.00015375,2]
[407804926,1772813440866,-500.0,0.00015375,2]
[407804927,1772813440875,-500.0,0.00015375,2]
[407804929,1772813440884,-449.5306254,0.00015375,2]
[407804932,1772813440894,-556.1229892,0.00015375,2]
[407804935,1772813440903,-500.0,0.00015375,2]
[407804938,1772813440912,-4843.3457108,0.00015394,2]
[407804939,1772813440921,-200.0,0.00015395,2]
[407804940,1772813440931,-1298.62747385,0.0001544,2]
[407804941,1772813440941,-600.0,0.0001544,2]
[407804942,1772813440950,-250.0,0.0001544,2]
[407804943,1772813440960,-600.0,0.0001544,2]
[407804944,1772813440970,-501.33101077,0.00015468,2]
[407804945,1772813440979,-216.14,0.00015471,2]
[407804946,1772813440988,-2510.01,0.00015471,2]
[407804947,1772813440997,-11926.4693518,0.00015472,2]
[407804948,1772813441007,-1680.0,0.00015517,2]
[407804949,1772813441016,-3763.80067527,0.00015518,2]
[407804950,1772813441026,-500.0,0.00015518,2]
[407804951,1772813441035,-250.0,0.00015518,2]
[407804952,1772813441045,-600.0,0.00015518,2]
[407804953,1772813441055,-300.0,0.00015518,2]
[407804954,1772813441065,-300.0,0.00015518,2]
[407804955,1772813441075,-200.0,0.00015518,2]
[407804956,1772813441084,-589.22,0.00015597,2]
[407804957,1772813441094,-500.0,0.000156,2]
[407804958,1772813441104,-500.0,0.000156,2]
[407804959,1772813441114,-500.0,0.000156,2]
[407804960,1772813441123,-500.0,0.000156,2]
[407804961,1772813441134,-300.0,0.00015627,2]
[407804962,1772813441144,-150.0,0.00015627,2]
[407804963,1772813441155,-166.96635769,0.00015627,2]
[407804964,1772813441165,-250.0,0.00015627,2]
[407804965,1772813441175,-300.0,0.00015627,2]
[407804966,1772813441185,-1000.0,0.00015668,2]
[407804967,1772813441195,-3002.94905418,0.00015833,2]
[407804968,1772813441205,-705.88057451,0.00015848,2]
[407804969,1772813441215,-2000.0,0.00015916,2]
[407804970,1772813441224,-2000.0,0.00015916,2]
[407804971,1772813441234,-1000.0,0.00015923,2]
[407804972,1772813441244,-1000.0,0.00015923,2]
[407804973,1772813441255,-1000.0,0.00015923,2]
[407804974,1772813441264,-1000.0,0.00015923,2]
[407804975,1772813441273,-1000.0,0.00015923,2]
[407804976,1772813441283,-240.02207299,0.00015943,2]
[407804977,1772813441297,-5000.0,0.0001596,2]
[407804978,1772813441311,-4211.34964861,0.00015984,2]
[407804979,1772813441320,-2000.0,0.0001602,2]
[407804980,1772813441330,-4843.3457108,0.00016038,2]
[407804981,1772813441340,-166.66,0.00016065,2]
[407804982,1772813441351,-28089.0866304,0.0001609,2]
[407804983,1772813441360,-11926.4693518,0.00016105,2]
[407804984,1772813441370,-2000.0,0.0001612,2]
[407804985,1772813441380,-1000.0,0.00016148,2]
[407804986,1772813441389,-1000.0,0.00016148,2]
[407804987,1772813441399,-1000.0,0.00016148,2]
[407804988,1772813441409,-5000.00577362,0.000162,5]
[407804989,1772813441419,-2000.0,0.0001622,2]
[407804990,1772813441428,-2000.0,0.0001622,2]
[407804991,1772813441437,-2000.0,0.0001632,2]
[407804992,1772813441447,-2000.0,0.0001632,2]
[407804993,1772813441456,-2000.0,0.0001632,2]
[407804994,1772813441466,-2000.0,0.0001632,2]
[407804995,1772813441476,-2000.0,0.0001632,2]
[407804996,1772813441486,-1500.0,0.0001642,2]
[407804997,1772813441496,-2800.840232,0.0001642,2]
[407804998,1772813441505,-179.45599622,0.0001642,2]
[407804999,1772813441515,-341.19,0.0001642,2]
[407805000,1772813441524,-6267.5223982,0.00016433,2]
[407805001,1772813441533,-2500.0,0.00016464,2]
[407805002,1772813441545,-2003.37044262,0.00016464,2]
[407805003,1772813441555,-1489.71509886,0.00016471,2]
[407805004,1772813441564,-1500.0,0.00016471,2]
[407805005,1772813441574,-1000.0,0.00016471,2]
[407805006,1772813441584,-1500.0,0.00016471,2]
[407805007,1772813441593,-1000.0,0.00016471,2]
[407805008,1772813441603,-1055.98790797,0.00016484,2]
[407805009,1772813441612,-433.0,0.00016536,2]
[407805010,1772813441622,-166.66,0.00016595,2]
[407805011,1772813441632,-3002.94905418,0.00016646,2]
[407805012,1772813441641,-4843.3457108,0.00016682,2]
[407805013,1772813441651,-1500.0,0.00016696,2]
[407805014,1772813441661,-1500.0,0.00016696,2]
[407805015,1772813441670,-1500.0,0.00016696,2]
[407805016,1772813441679,-11926.4693518,0.00016737,2]
[407805017,1772813441689,-5621.12574049,0.000169,3]
[407805018,1772813441698,-500.0,0.00016973,2]
[407805019,1772813441708,-500.0,0.00016973,2]
[407805020,1772813441717,-500.0,0.00016973,2]
[407805021,1772813441726,-182.43846544,0.00016973,2]
[407805022,1772813441736,-446.12402339,0.00016973,2]
[407805023,1772813441745,-190423.0678235,0.00017,2]
[407805024,1772813441754,-300.0,0.00017,2]
[407805025,1772813441763,-160.0,0.00017,7]
[407805026,1772813441772,-3000.0,0.00017012,2]
[407805027,1772813441781,-2000.0,0.00017019,2]
[407805028,1772813441791,-1778.57186039,0.00017019,2]
[407805029,1772813441801,-583.85992055,0.00017054,2]
[407805030,1772813441810,-668.54061127,0.00017054,2]
[407805031,1772813441820,-2002.29606883,0.00017054,2]
[407805032,1772813441829,-2351.0,0.00017068,2]
[407805033,1772813441838,-490.7231731,0.0001711,2]
[407805034,1772813441848,-166.66,0.00017125,2]
[407805035,1772813441857,-4000.0,0.00017238,2]
[407805036,1772813441866,-2000.0,0.00017244,2]
[407805037,1772813441875,-2000.0,0.00017244,2]
[407805038,1772813441884,-4843.3457108,0.00017325,2]
[407805039,1772813441894,-11926.4693518,0.0001737,2]
[407805040,1772813441904,-3002.94905418,0.0001746,2]
[407805041,1772813441913,-20418.27,0.0001751,7]
[407805042,1772813441923,-2041.83,0.0001751,7]
[407805043,1772813441932,-1000.0,0.00017521,2]
[407805044,1772813441941,-1000.0,0.00017521,2]
[407805045,1772813441951,-1000.0,0.00017521,2]
[407805046,1772813441960,-3500.0,0.0001756,2]
[407805047,1772813441969,-2500.0,0.00017567,2]
[407805048,1772813441978,-1055.98790797,0.00017623,2]
[407805049,1772813441988,-166.66,0.00017656,2]
[407805050,1772813441997,-4000.0,0.00017669,2]
[407805051,1772813442006,-692.0,0.000177,2]
[407805052,1772813442015,-189.44875125,0.0001773,2]
[407805053,1772813442024,-546.47179689,0.00017792,2]
[407805054,1772813442034,-2500.0,0.00017792,2]
[407805055,1772813442044,-500.0,0.00017808,2]
[407805056,1772813442053,-800.0,0.00017808,2]
[407805057,1772813442063,-736.0,0.00017843,2]
[407805058,1772813442072,-4843.3457108,0.00017969,2]
[407805059,1772813442082,-12798.57558659,0.0001799,2]
[407805060,1772813442092,-500.0,0.00018,2]
[407805061,1772813442103,-19289.43889689,0.00018,2]
[407805062,1772813442113,-11926.4693518,0.00018002,2]
[407805063,1772813442123,-15313.7,0.00018035,7]
[407805064,1772813442132,-1531.37,0.00018035,7]
[407805065,1772813442141,-1500.0,0.00018068,2]
[407805066,1772813442151,-1134.58548457,0.00018068,2]
[407805067,1772813442160,-5532.0,0.000181,3]
[407805068,1772813442168,-4000.0,0.000181,2]
[407805069,1772813442177,-1000.0,0.00018108,2]
[407805070,1772813442188,-3000.0,0.00018115,2]
[407805071,1772813442199,-166.66,0.00018186,2]
[407805072,1772813442211,-1000.0,0.00018193,2]
[407805073,1772813442222,-3002.94905418,0.00018273,2]
[407805074,1772813442232,-29547.53,0.0001828,2]
[407805075,1772813442241,-500.0,0.00018329,2]
[407805076,1772813442251,-214.62773312,0.0001834,2]
[407805077,1772813442260,-5532.0,0.000185,5]
[407805078,1772813442269,-288.35657214,0.00018523,2]
[407805079,1772813442279,-4000.0,0.00018531,2]
[407805080,1772813442288,-150.99,0.00018533,2]
[407805081,1772813442300,-9999.99,0.00018533,2]
[407805082,1772813442311,-10209.13,0.00018561,7]
[407805083,1772813442320,-1020.91,0.00018561,7]
[407805084,1772813442329,-4843.3457108,0.00018613,2]
[407805085,1772813442339,-2000.0,0.00018616,2]
[407805086,1772813442349,-11926.4693518,0.00018635,2]
[407805087,1772813442358,-500.0,0.00018651,120]
[407805088,1772813442368,-150.0,0.00018651,120]
[407805089,1772813442380,-150.25470308,0.00018651,120]
[407805090,1772813442389,-500.0,0.00018663,2]
[407805091,1772813442399,-166.66,0.00018716,2]
[407805092,1772813442409,-1055.98790797,0.00018761,2]
[407805093,1772813442419,-3292.0,0.00018775,2]
[407805094,1772813442428,-4000.0,0.00018962,2]
[407805095,1772813442437,-184.41882125,0.00019,2]
[407805096,1772813442447,-2623.68709664,0.00019,2]
[407805097,1772813442456,-350.0,0.00019,2]
[407805098,1772813442466,-360.39836175,0.0001901,7]
[407805099,1772813442475,-3002.94905418,0.00019087,2]
[407805100,1772813442484,-258.69744367,0.00019152,2]
[407805101,1772813442493,-2500.0,0.00019164,2]